[Event "Early-Titled-Tuesday-Blitz-August-29-2023"]
[Site "Chess.com"]
[Date "2023.08.29"]
[Round "2"]
[White "pankajfm"]
[Black "Herman-NY"]
[Result "0-1"]
[WhiteElo "2102"]
[BlackElo "2445"]
[TimeControl "180+1"]
[EndTime "8:17:16 PDT"]
[Termination "Herman-NY won by checkmate"]

1. e4 {[%clk 0:02:59.9]} 1... c5 {[%clk 0:03:00.5]} 2. b3 {[%clk 0:02:59]} 2...
Nc6 {[%clk 0:02:59.2]} 3. Bb2 {[%clk 0:02:59.5]} 3... a6 {[%clk 0:02:59.4]} 4.
f4 {[%clk 0:02:57.5]} 4... d5 {[%clk 0:02:55.5]} 5. exd5 {[%clk 0:02:52.4]} 5...
Qxd5 {[%clk 0:02:56.4]} 6. Nc3 {[%clk 0:02:50.6]} 6... Qe6+ {[%clk 0:02:53.7]}
7. Be2 {[%clk 0:02:31.1]} 7... Nd4 {[%clk 0:02:49.3]} 8. Nh3 {[%clk 0:02:00.1]}
8... Qg6 {[%clk 0:02:34.9]} 9. Ng5 {[%clk 0:01:47.8]} 9... Nxc2+ {[%clk
0:02:27.4]} 10. Kf1 {[%clk 0:01:46.7]} 10... Nxa1 {[%clk 0:02:27.6]} 11. Nd5
{[%clk 0:01:39.9]} 11... Qd6 {[%clk 0:02:01.2]} 12. Bc4 {[%clk 0:01:15.4]} 12...
f6 {[%clk 0:01:57.4]} 13. Ne4 {[%clk 0:00:34.6]} 13... Qd8 {[%clk 0:01:51]} 14.
Bxa1 {[%clk 0:00:14.1]} 14... b5 {[%clk 0:01:48]} 15. Qh5+ {[%clk 0:00:05.9]}
15... g6 {[%clk 0:01:47.7]} 16. Qe2 {[%clk 0:00:02.7]} 16... bxc4 {[%clk
0:01:39.3]} 17. Qxc4 {[%clk 0:00:02.9]} 17... Bb7 {[%clk 0:01:33.1]} 18. Ne3
{[%clk 0:00:01.6]} 18... Rc8 {[%clk 0:01:21.2]} 19. Qa4+ {[%clk 0:00:01.7]}
19... Qd7 {[%clk 0:01:19.8]} 20. Qc4 {[%clk 0:00:01.9]} 20... Bg7 {[%clk
0:01:13]} 21. Nxc5 {[%clk 0:00:02.2]} 21... Qc6 {[%clk 0:01:10.6]} 22. Ne6
{[%clk 0:00:01.9]} 22... Qxc4+ {[%clk 0:01:07.6]} 23. Nxc4 {[%clk 0:00:01.6]}
23... Kf7 {[%clk 0:01:08.2]} 24. Nxg7 {[%clk 0:00:01.5]} 24... Kxg7 {[%clk
0:01:09.1]} 25. Bc3 {[%clk 0:00:01.9]} 25... Nh6 {[%clk 0:01:08.4]} 26. Kf2
{[%clk 0:00:00.9]} 26... Nf5 {[%clk 0:01:05.7]} 27. h3 {[%clk 0:00:01.8]} 27...
h5 {[%clk 0:01:05.9]} 28. Rc1 {[%clk 0:00:02.3]} 28... h4 {[%clk 0:01:06.1]} 29.
Ne3 {[%clk 0:00:02.1]} 29... Nxe3 {[%clk 0:01:06.1]} 30. dxe3 {[%clk 0:00:03]}
30... Rhd8 {[%clk 0:01:05.8]} 31. Rc2 {[%clk 0:00:02.5]} 31... Rd3 {[%clk
0:01:05.8]} 32. Bd2 {[%clk 0:00:02.4]} 32... Rxc2 {[%clk 0:01:05.7]} 33. b4
{[%clk 0:00:03.1]} 33... Rcxd2+ {[%clk 0:01:06.2]} 34. Kf1 {[%clk 0:00:02.7]}
34... Rxg2 {[%clk 0:01:06.2]} 35. Ke1 {[%clk 0:00:01.9]} 35... Rxe3+ {[%clk
0:01:04.7]} 36. Kd1 {[%clk 0:00:02]} 36... Rxh3 {[%clk 0:01:05.1]} 37. Kc1
{[%clk 0:00:02.1]} 37... Rh1# {[%clk 0:01:06]} 0-1

[Event "Early-Titled-Tuesday-Blitz-August-29-2023"]
[Site "Chess.com"]
[Date "2023.08.29"]
[Round "2"]
[White "pedromartinez91"]
[Black "knightinshiningarmour16"]
[Result "1-0"]
[WhiteElo "2448"]
[BlackElo "2131"]
[TimeControl "180+1"]
[EndTime "8:17:17 PDT"]
[Termination "pedromartinez91 won by resignation"]

1. e4 {[%clk 0:03:00.9]} 1... c6 {[%clk 0:02:59.2]} 2. d3 {[%clk 0:02:59.7]}
2... d5 {[%clk 0:02:58.5]} 3. Nf3 {[%clk 0:03:00]} 3... dxe4 {[%clk 0:02:53.2]}
4. dxe4 {[%clk 0:03:00]} 4... Qxd1+ {[%clk 0:02:52.7]} 5. Kxd1 {[%clk
0:03:00.9]} 5... Bg4 {[%clk 0:02:51.2]} 6. Be2 {[%clk 0:03:00.5]} 6... e6 {[%clk
0:02:50.2]} 7. Ne5 {[%clk 0:02:58.1]} 7... Bxe2+ {[%clk 0:02:49.1]} 8. Kxe2
{[%clk 0:02:59]} 8... Nf6 {[%clk 0:02:47.7]} 9. f3 {[%clk 0:02:58.3]} 9... Bd6
{[%clk 0:02:46.9]} 10. Nd3 {[%clk 0:02:52.1]} 10... Nbd7 {[%clk 0:02:43.4]} 11.
Be3 {[%clk 0:02:50.2]} 11... O-O {[%clk 0:02:40.5]} 12. Nd2 {[%clk 0:02:49.5]}
12... Ne5 {[%clk 0:02:33]} 13. Nxe5 {[%clk 0:02:48.5]} 13... Bxe5 {[%clk
0:02:33.9]} 14. c3 {[%clk 0:02:49.1]} 14... Rfd8 {[%clk 0:02:28.4]} 15. Nc4
{[%clk 0:02:48.8]} 15... Bc7 {[%clk 0:02:26.7]} 16. a4 {[%clk 0:02:48.6]} 16...
a5 {[%clk 0:02:20.6]} 17. g3 {[%clk 0:02:36.7]} 17... b5 {[%clk 0:02:17.2]} 18.
Na3 {[%clk 0:02:33.5]} 18... Rab8 {[%clk 0:02:13.1]} 19. Rhd1 {[%clk 0:02:27.7]}
19... h6 {[%clk 0:02:08.3]} 20. Ba7 {[%clk 0:02:25.1]} 20... Rb7 {[%clk
0:02:05.2]} 21. Bd4 {[%clk 0:02:14.8]} 21... e5 {[%clk 0:01:56.9]} 22. Be3
{[%clk 0:02:10]} 22... Rbb8 {[%clk 0:01:28.4]} 23. Nc2 {[%clk 0:02:00.5]} 23...
Kf8 {[%clk 0:01:21.8]} 24. Ba7 {[%clk 0:01:54.8]} 24... Rb7 {[%clk 0:01:19.3]}
25. Rxd8+ {[%clk 0:01:53.1]} 25... Bxd8 {[%clk 0:01:18.8]} 26. Bc5+ {[%clk
0:01:54]} 26... Ke8 {[%clk 0:01:18.2]} 27. axb5 {[%clk 0:01:54.1]} 27... cxb5
{[%clk 0:01:15.5]} 28. b4 {[%clk 0:01:39.7]} 28... a4 {[%clk 0:00:59.4]} 29. c4
{[%clk 0:01:37.9]} 29... bxc4 {[%clk 0:00:56.7]} 30. Rxa4 {[%clk 0:01:37.6]}
30... Nd7 {[%clk 0:00:55.9]} 31. Kd2 {[%clk 0:01:32.2]} 31... Nxc5 {[%clk
0:00:39.9]} 32. bxc5 {[%clk 0:01:32.1]} 32... Rc7 {[%clk 0:00:33]} 33. Rxc4
{[%clk 0:01:31.6]} 33... Be7 {[%clk 0:00:33]} 34. c6 {[%clk 0:01:29.9]} 34...
Bd6 {[%clk 0:00:31.5]} 35. Ne3 {[%clk 0:01:29.4]} 35... Rc8 {[%clk 0:00:25.1]}
36. Nd5 {[%clk 0:01:29.7]} 36... Kd8 {[%clk 0:00:23.7]} 37. f4 {[%clk
0:01:26.8]} 37... f6 {[%clk 0:00:22.2]} 38. f5 {[%clk 0:01:27.2]} 38... Ke8
{[%clk 0:00:19.9]} 39. Ke3 {[%clk 0:01:27.5]} 39... Ra8 {[%clk 0:00:17.8]} 40.
Kf3 {[%clk 0:01:27.1]} 40... Kd8 {[%clk 0:00:16.6]} 41. Kg4 {[%clk 0:01:27.3]}
41... Ra6 {[%clk 0:00:15.2]} 42. Rc3 {[%clk 0:01:27.3]} 42... Kc8 {[%clk
0:00:14.6]} 43. Kh5 {[%clk 0:01:27.3]} 43... Ra2 {[%clk 0:00:13.1]} 44. h4
{[%clk 0:01:27.3]} 44... Rg2 {[%clk 0:00:12.6]} 45. Kg6 {[%clk 0:01:27.4]} 1-0

[Event "Early-Titled-Tuesday-Blitz-August-29-2023"]
[Site "Chess.com"]
[Date "2023.08.29"]
[Round "2"]
[White "lamomiajunior"]
[Black "BigAl"]
[Result "1-0"]
[WhiteElo "2804"]
[BlackElo "2470"]
[TimeControl "180+1"]
[EndTime "8:17:21 PDT"]
[Termination "lamomiajunior won by resignation"]

1. d4 {[%clk 0:03:00.9]} 1... Nf6 {[%clk 0:03:00.2]} 2. Nc3 {[%clk 0:03:01.6]}
2... d6 {[%clk 0:02:54.2]} 3. e4 {[%clk 0:03:01.4]} 3... g6 {[%clk 0:02:55.1]}
4. Be3 {[%clk 0:03:01.3]} 4... a6 {[%clk 0:02:55.4]} 5. f3 {[%clk 0:02:57.7]}
5... Nc6 {[%clk 0:02:52.5]} 6. Qd2 {[%clk 0:02:57.9]} 6... b5 {[%clk 0:02:46.8]}
7. O-O-O {[%clk 0:02:51.9]} 7... Rb8 {[%clk 0:02:45.5]} 8. Kb1 {[%clk
0:02:50.2]} 8... Bd7 {[%clk 0:02:27.2]} 9. h4 {[%clk 0:02:41]} 9... h5 {[%clk
0:02:26.9]} 10. Nh3 {[%clk 0:02:40.5]} 10... Bg7 {[%clk 0:02:27.2]} 11. Ng5
{[%clk 0:02:39.9]} 11... O-O {[%clk 0:02:27]} 12. g4 {[%clk 0:02:15.6]} 12... e5
{[%clk 0:02:26.3]} 13. dxe5 {[%clk 0:02:04.9]} 13... Nxe5 {[%clk 0:02:25.1]} 14.
gxh5 {[%clk 0:02:03.9]} 14... Nxh5 {[%clk 0:02:24.8]} 15. Rg1 {[%clk 0:01:52]}
15... Nc4 {[%clk 0:02:21.9]} 16. Bxc4 {[%clk 0:01:51.1]} 16... bxc4 {[%clk
0:02:21.1]} 17. Bd4 {[%clk 0:01:51.6]} 17... Bh6 {[%clk 0:01:56.7]} 18. f4
{[%clk 0:01:43.8]} 18... c5 {[%clk 0:01:47.5]} 19. Be3 {[%clk 0:01:35.4]} 19...
Qb6 {[%clk 0:01:47]} 20. b3 {[%clk 0:01:35.8]} 20... cxb3 {[%clk 0:01:31.5]} 21.
axb3 {[%clk 0:01:35]} 21... Bc6 {[%clk 0:01:21.6]} 22. f5 {[%clk 0:01:26.9]}
22... Rbe8 {[%clk 0:01:06.3]} 23. fxg6 {[%clk 0:01:15.2]} 23... fxg6 {[%clk
0:01:06]} 24. Qxd6 {[%clk 0:01:11.1]} 24... Bg7 {[%clk 0:00:54.2]} 25. Bxc5
{[%clk 0:01:02]} 25... Qa5 {[%clk 0:00:49]} 26. Bb4 {[%clk 0:01:01.8]} 26... Qe5
{[%clk 0:00:46.1]} 27. Qxc6 {[%clk 0:00:58.3]} 27... Nf4 {[%clk 0:00:41.2]} 28.
Nf3 {[%clk 0:00:55.5]} 28... Qh5 {[%clk 0:00:33.7]} 29. Nd4 {[%clk 0:00:52.3]}
29... Rf6 {[%clk 0:00:26.6]} 30. Qc4+ {[%clk 0:00:51.5]} 30... Kh7 {[%clk
0:00:27.1]} 31. Nd5 {[%clk 0:00:46.2]} 31... Rxe4 {[%clk 0:00:24.4]} 32. Nxf6+
{[%clk 0:00:46.2]} 32... Bxf6 {[%clk 0:00:24.5]} 33. Qf7+ {[%clk 0:00:43.9]}
33... Bg7 {[%clk 0:00:24.1]} 34. Bf8 {[%clk 0:00:44.6]} 1-0

[Event "Early-Titled-Tuesday-Blitz-August-29-2023"]
[Site "Chess.com"]
[Date "2023.08.29"]
[Round "2"]
[White "chess94cu"]
[Black "Karina_Ivanova"]
[Result "1-0"]
[WhiteElo "2708"]
[BlackElo "2308"]
[TimeControl "180+1"]
[EndTime "8:17:21 PDT"]
[Termination "chess94cu won by resignation"]

1. Nf3 {[%clk 0:03:00.9]} 1... Nf6 {[%clk 0:02:56.6]} 2. c4 {[%clk 0:03:00.9]}
2... c5 {[%clk 0:02:52.4]} 3. Nc3 {[%clk 0:03:00.2]} 3... e6 {[%clk 0:02:51.1]}
4. e3 {[%clk 0:03:00]} 4... Be7 {[%clk 0:02:48.7]} 5. d4 {[%clk 0:03:00.9]} 5...
cxd4 {[%clk 0:02:48.5]} 6. exd4 {[%clk 0:03:01.1]} 6... d5 {[%clk 0:02:48.5]} 7.
cxd5 {[%clk 0:02:59.3]} 7... Nxd5 {[%clk 0:02:48.1]} 8. Bd3 {[%clk 0:03:00]}
8... O-O {[%clk 0:02:46.3]} 9. O-O {[%clk 0:02:59.9]} 9... Nc6 {[%clk
0:02:45.9]} 10. a3 {[%clk 0:02:59.3]} 10... b6 {[%clk 0:02:39.5]} 11. Qe2 {[%clk
0:02:54]} 11... Bb7 {[%clk 0:02:35.8]} 12. Rd1 {[%clk 0:02:54.4]} 12... g6
{[%clk 0:02:34.6]} 13. Bh6 {[%clk 0:02:52.4]} 13... Re8 {[%clk 0:02:33.8]} 14.
Rac1 {[%clk 0:02:31.8]} 14... Nxc3 {[%clk 0:02:30.8]} 15. Rxc3 {[%clk
0:02:26.5]} 15... Bf6 {[%clk 0:02:18.8]} 16. Be4 {[%clk 0:02:19.5]} 16... Rc8
{[%clk 0:02:06.4]} 17. Rdc1 {[%clk 0:01:51.6]} 17... Qd6 {[%clk 0:01:32.6]} 18.
Qe3 {[%clk 0:01:19.8]} 18... Na5 {[%clk 0:00:49.8]} 19. b4 {[%clk 0:00:59.1]}
19... Rxc3 {[%clk 0:00:26.1]} 20. Rxc3 {[%clk 0:01:00]} 20... Nc6 {[%clk
0:00:20.3]} 21. h4 {[%clk 0:00:47.3]} 21... Nd8 {[%clk 0:00:18.7]} 22. Bxb7
{[%clk 0:00:41.7]} 22... Nxb7 {[%clk 0:00:18.9]} 23. Ne5 {[%clk 0:00:42.4]}
23... Qd5 {[%clk 0:00:14.2]} 24. Qf4 {[%clk 0:00:37.6]} 24... Bxe5 {[%clk
0:00:08.6]} 25. dxe5 {[%clk 0:00:38.5]} 1-0

[Event "Early-Titled-Tuesday-Blitz-August-29-2023"]
[Site "Chess.com"]
[Date "2023.08.29"]
[Round "2"]
[White "kirillshevchenko"]
[Black "Doraemon7"]
[Result "1-0"]
[WhiteElo "2980"]
[BlackElo "2641"]
[TimeControl "180+1"]
[EndTime "8:17:22 PDT"]
[Termination "kirillshevchenko won by resignation"]

1. d4 {[%clk 0:02:52.8]} 1... d5 {[%clk 0:02:53.5]} 2. c4 {[%clk 0:02:50.5]}
2... c6 {[%clk 0:02:53.6]} 3. cxd5 {[%clk 0:02:46]} 3... cxd5 {[%clk 0:02:54.4]}
4. Bg5 {[%clk 0:02:46.7]} 4... Nc6 {[%clk 0:02:51.9]} 5. Nc3 {[%clk 0:02:43.5]}
5... Nf6 {[%clk 0:02:52]} 6. Bxf6 {[%clk 0:02:42]} 6... gxf6 {[%clk 0:02:51.2]}
7. e3 {[%clk 0:02:42.2]} 7... e6 {[%clk 0:02:49.3]} 8. Bd3 {[%clk 0:02:41.2]}
8... f5 {[%clk 0:02:44.1]} 9. f4 {[%clk 0:02:40]} 9... Qh4+ {[%clk 0:02:35.6]}
10. g3 {[%clk 0:02:39.5]} 10... Qd8 {[%clk 0:02:31.6]} 11. Nf3 {[%clk
0:02:39.1]} 11... Bd7 {[%clk 0:02:29.5]} 12. O-O {[%clk 0:02:35.9]} 12... Be7
{[%clk 0:02:23.9]} 13. Qe2 {[%clk 0:02:27.6]} 13... O-O {[%clk 0:02:20.6]} 14.
h3 {[%clk 0:02:26.5]} 14... Kh8 {[%clk 0:02:19.5]} 15. Kh2 {[%clk 0:02:25.6]}
15... Rg8 {[%clk 0:02:20]} 16. Rg1 {[%clk 0:02:26.3]} 16... Qf8 {[%clk 0:02:15]}
17. Rg2 {[%clk 0:02:14.3]} 17... Qh6 {[%clk 0:02:13.1]} 18. Rh1 {[%clk
0:02:14.1]} 18... Rg6 {[%clk 0:02:11.1]} 19. Kg1 {[%clk 0:02:07.6]} 19... Rag8
{[%clk 0:02:09.7]} 20. g4 {[%clk 0:02:07.4]} 20... f6 {[%clk 0:01:00.2]} 21.
Rhh2 {[%clk 0:01:48]} 21... Nb4 {[%clk 0:00:38.7]} 22. Bb1 {[%clk 0:01:43.4]}
22... Qf8 {[%clk 0:00:13.8]} 23. a3 {[%clk 0:01:36.5]} 23... Nc6 {[%clk
0:00:12.6]} 24. gxf5 {[%clk 0:01:36.8]} 24... exf5 {[%clk 0:00:13.2]} 25. Nxd5
{[%clk 0:01:36.5]} 25... Bd6 {[%clk 0:00:13.9]} 26. Nh4 {[%clk 0:01:34.9]} 26...
Rxg2+ {[%clk 0:00:13.5]} 27. Rxg2 {[%clk 0:01:35.8]} 27... Qf7 {[%clk 0:00:14]}
28. Rxg8+ {[%clk 0:01:33.7]} 28... Kxg8 {[%clk 0:00:14.7]} 29. Qg2+ {[%clk
0:01:33]} 29... Kf8 {[%clk 0:00:15.3]} 30. Nxf5 {[%clk 0:01:32.8]} 30... Bb8
{[%clk 0:00:15.3]} 31. Nh6 {[%clk 0:01:26.2]} 31... Qg7 {[%clk 0:00:15.3]} 32.
Qxg7+ {[%clk 0:01:26]} 32... Kxg7 {[%clk 0:00:16.2]} 33. Bf5 {[%clk 0:01:26.7]}
33... Be8 {[%clk 0:00:17]} 34. Ng4 {[%clk 0:01:25.9]} 34... Bf7 {[%clk
0:00:17.6]} 35. Ndxf6 {[%clk 0:01:25]} 35... h5 {[%clk 0:00:18.4]} 36. Nd7
{[%clk 0:01:12]} 36... hxg4 {[%clk 0:00:18]} 37. hxg4 {[%clk 0:01:12.9]} 37...
Bc7 {[%clk 0:00:17.7]} 38. Kf2 {[%clk 0:01:10.8]} 38... Na5 {[%clk 0:00:14.8]}
39. Nc5 {[%clk 0:01:10.2]} 39... b6 {[%clk 0:00:12.9]} 40. Ne6+ {[%clk
0:01:10.6]} 40... Bxe6 {[%clk 0:00:12.9]} 41. Bxe6 {[%clk 0:01:11.5]} 41... Kf6
{[%clk 0:00:13.8]} 42. Bd5 {[%clk 0:01:10.9]} 42... Ke7 {[%clk 0:00:14.7]} 43.
b4 {[%clk 0:01:10.7]} 1-0

[Event "Early-Titled-Tuesday-Blitz-August-29-2023"]
[Site "Chess.com"]
[Date "2023.08.29"]
[Round "2"]
[White "ozates"]
[Black "rochaaaaaaaaaa"]
[Result "1-0"]
[WhiteElo "2574"]
[BlackElo "2206"]
[TimeControl "180+1"]
[EndTime "8:17:26 PDT"]
[Termination "ozates won on time"]

1. e4 {[%clk 0:03:00.9]} 1... c6 {[%clk 0:02:59.4]} 2. d4 {[%clk 0:03:00]} 2...
d5 {[%clk 0:02:59.8]} 3. exd5 {[%clk 0:03:00.9]} 3... cxd5 {[%clk 0:03:00.7]} 4.
c4 {[%clk 0:03:01.4]} 4... Nf6 {[%clk 0:03:00]} 5. Nc3 {[%clk 0:03:02.3]} 5...
e6 {[%clk 0:02:58.7]} 6. Nf3 {[%clk 0:03:01.9]} 6... Bb4 {[%clk 0:02:57.6]} 7.
cxd5 {[%clk 0:02:57.3]} 7... Nxd5 {[%clk 0:02:56.8]} 8. Bd2 {[%clk 0:02:55.9]}
8... O-O {[%clk 0:02:55.8]} 9. Bd3 {[%clk 0:02:55.8]} 9... Nc6 {[%clk
0:02:51.2]} 10. O-O {[%clk 0:02:55.7]} 10... b6 {[%clk 0:02:49.6]} 11. Qe2
{[%clk 0:02:55]} 11... Bb7 {[%clk 0:02:48.6]} 12. Qe4 {[%clk 0:02:52.4]} 12...
Nf6 {[%clk 0:02:45.3]} 13. Qh4 {[%clk 0:02:52.2]} 13... Be7 {[%clk 0:02:39.7]}
14. Rfe1 {[%clk 0:02:43.6]} 14... Nb4 {[%clk 0:02:31.2]} 15. Bb1 {[%clk
0:02:39.5]} 15... Bxf3 {[%clk 0:02:26]} 16. gxf3 {[%clk 0:02:39.4]} 16... Nbd5
{[%clk 0:02:26.3]} 17. Kh1 {[%clk 0:02:38.3]} 17... Nxc3 {[%clk 0:02:24.2]} 18.
bxc3 {[%clk 0:02:38.2]} 18... g6 {[%clk 0:02:18.1]} 19. Rg1 {[%clk 0:02:33.9]}
19... Qd5 {[%clk 0:02:04.1]} 20. Rg3 {[%clk 0:02:31.7]} 20... Rfe8 {[%clk
0:01:37.4]} 21. Qh3 {[%clk 0:02:15.6]} 21... Qh5 {[%clk 0:01:19.4]} 22. Qg2
{[%clk 0:02:12.1]} 22... Rac8 {[%clk 0:01:04.8]} 23. Bd3 {[%clk 0:02:11.1]}
23... Qd5 {[%clk 0:00:49.9]} 24. Rg1 {[%clk 0:02:11]} 24... Kh8 {[%clk
0:00:49.2]} 25. Rg5 {[%clk 0:02:03.1]} 25... Qc6 {[%clk 0:00:44.8]} 26. Bf4
{[%clk 0:01:58.1]} 26... Qxc3 {[%clk 0:00:18.5]} 27. Bb5 {[%clk 0:01:12.1]}
27... Rg8 {[%clk 0:00:18.1]} 28. Be5 {[%clk 0:01:12.4]} 28... Qd2 {[%clk
0:00:13.4]} 29. Rg4 {[%clk 0:01:03.5]} 29... Rc1 {[%clk 0:00:12.8]} 30. Rf4
{[%clk 0:00:59.7]} 30... Rxg1+ {[%clk 0:00:12.5]} 31. Qxg1 {[%clk 0:01:00.6]}
31... Qb2 {[%clk 0:00:03.8]} 32. Bf1 {[%clk 0:00:52.1]} 32... Qc3 {[%clk
0:00:01.5]} 33. Qg5 {[%clk 0:00:48.6]} 33... Rg7 {[%clk 0:00:01.1]} 34. Rxf6
{[%clk 0:00:47]} 34... Bxf6 {[%clk 0:00:01.1]} 35. Qxf6 {[%clk 0:00:47]} 1-0

[Event "Early-Titled-Tuesday-Blitz-August-29-2023"]
[Site "Chess.com"]
[Date "2023.08.29"]
[Round "2"]
[White "Tsyhanchuk_Stanislav"]
[Black "PattyCastillo"]
[Result "1-0"]
[WhiteElo "2429"]
[BlackElo "1932"]
[TimeControl "180+1"]
[EndTime "8:17:30 PDT"]
[Termination "Tsyhanchuk_Stanislav won on time"]

1. e4 {[%clk 0:03:00.9]} 1... c5 {[%clk 0:02:55]} 2. c4 {[%clk 0:03:00]} 2... d6
{[%clk 0:02:54.6]} 3. Nc3 {[%clk 0:02:59.8]} 3... Nf6 {[%clk 0:02:54.9]} 4. Nge2
{[%clk 0:02:54.7]} 4... Nc6 {[%clk 0:02:53.3]} 5. d4 {[%clk 0:02:55.3]} 5...
cxd4 {[%clk 0:02:52.9]} 6. Nxd4 {[%clk 0:02:56.2]} 6... e6 {[%clk 0:02:49.4]} 7.
Be3 {[%clk 0:02:55.1]} 7... Be7 {[%clk 0:02:49.1]} 8. Be2 {[%clk 0:02:55]} 8...
O-O {[%clk 0:02:49.4]} 9. O-O {[%clk 0:02:55.5]} 9... a6 {[%clk 0:02:50.1]} 10.
b3 {[%clk 0:02:54.9]} 10... Qc7 {[%clk 0:02:46.9]} 11. Rc1 {[%clk 0:02:54.4]}
11... Qb8 {[%clk 0:02:46.9]} 12. f4 {[%clk 0:02:51.7]} 12... Rd8 {[%clk
0:02:46.5]} 13. Kh1 {[%clk 0:02:48.9]} 13... d5 {[%clk 0:02:09.5]} 14. cxd5
{[%clk 0:02:46.8]} 14... exd5 {[%clk 0:02:08.8]} 15. e5 {[%clk 0:02:47]} 15...
Ne4 {[%clk 0:02:07.2]} 16. Nxc6 {[%clk 0:02:46.1]} 16... bxc6 {[%clk 0:02:06.4]}
17. Nxe4 {[%clk 0:02:46.4]} 17... dxe4 {[%clk 0:02:05.7]} 18. Qc2 {[%clk
0:02:46.9]} 18... Ba3 {[%clk 0:01:48]} 19. Rcd1 {[%clk 0:02:43.4]} 19... Bf5
{[%clk 0:01:44.7]} 20. Qxc6 {[%clk 0:02:39.6]} 20... h6 {[%clk 0:01:23.4]} 21.
Bc4 {[%clk 0:02:37.3]} 21... Rc8 {[%clk 0:01:05.3]} 22. Qa4 {[%clk 0:02:32.1]}
22... Bc5 {[%clk 0:00:58.2]} 23. Bxc5 {[%clk 0:02:22.2]} 23... Rxc5 {[%clk
0:00:58.3]} 24. Bd5 {[%clk 0:02:20.3]} 24... Rxd5 {[%clk 0:00:55.1]} 25. Rxd5
{[%clk 0:02:19]} 25... Qb6 {[%clk 0:00:48.7]} 26. Qd4 {[%clk 0:02:12.5]} 26...
Qg6 {[%clk 0:00:45.7]} 27. Rd8+ {[%clk 0:02:07.1]} 27... Rxd8 {[%clk 0:00:45]}
28. Qxd8+ {[%clk 0:02:08]} 28... Kh7 {[%clk 0:00:45]} 29. Qd4 {[%clk 0:02:06.4]}
29... Qg4 {[%clk 0:00:37.2]} 30. Qe3 {[%clk 0:02:03.9]} 30... Qg6 {[%clk
0:00:25.7]} 31. h3 {[%clk 0:02:00.9]} 31... Qe6 {[%clk 0:00:20.9]} 32. g4 {[%clk
0:01:58.3]} 32... Bxg4 {[%clk 0:00:15.6]} 33. hxg4 {[%clk 0:01:59.2]} 33... Qxg4
{[%clk 0:00:16.5]} 34. Qxe4+ {[%clk 0:01:59.3]} 34... g6 {[%clk 0:00:14.8]} 35.
Qf3 {[%clk 0:01:55.4]} 35... Qh4+ {[%clk 0:00:13.7]} 36. Kg1 {[%clk 0:01:55.8]}
36... h5 {[%clk 0:00:11.1]} 37. f5 {[%clk 0:01:55.1]} 37... g5 {[%clk
0:00:09.7]} 38. f6 {[%clk 0:01:53.6]} 38... Qd4+ {[%clk 0:00:07.6]} 39. Qf2
{[%clk 0:01:51.1]} 39... Qg4+ {[%clk 0:00:07.4]} 40. Qg2 {[%clk 0:01:42.5]}
40... Qd4+ {[%clk 0:00:07]} 41. Rf2 {[%clk 0:01:34.6]} 41... Qxe5 {[%clk
0:00:06.5]} 42. Qf3 {[%clk 0:01:34]} 42... Qe1+ {[%clk 0:00:06.2]} 43. Kg2
{[%clk 0:01:33.1]} 43... Kh6 {[%clk 0:00:01.9]} 44. Qa8 {[%clk 0:01:26.2]} 1-0

[Event "Early-Titled-Tuesday-Blitz-August-29-2023"]
[Site "Chess.com"]
[Date "2023.08.29"]
[Round "2"]
[White "Alexander_Moskalenko"]
[Black "Fleetw00dMac"]
[Result "1-0"]
[WhiteElo "2846"]
[BlackElo "2422"]
[TimeControl "180+1"]
[EndTime "8:17:31 PDT"]
[Termination "Alexander_Moskalenko won by resignation"]

1. d4 {[%clk 0:03:00.9]} 1... Nf6 {[%clk 0:02:59.5]} 2. Bg5 {[%clk 0:03:01.6]}
2... d5 {[%clk 0:02:58.5]} 3. Bxf6 {[%clk 0:02:59.8]} 3... exf6 {[%clk
0:02:58.1]} 4. e3 {[%clk 0:03:00.3]} 4... Bd6 {[%clk 0:02:57.8]} 5. Nd2 {[%clk
0:03:00.9]} 5... c6 {[%clk 0:02:54.8]} 6. Bd3 {[%clk 0:03:00.3]} 6... f5 {[%clk
0:02:54.7]} 7. Qf3 {[%clk 0:02:58.9]} 7... g6 {[%clk 0:02:54.3]} 8. Ne2 {[%clk
0:02:59.5]} 8... Nd7 {[%clk 0:02:51.4]} 9. h4 {[%clk 0:02:44.2]} 9... h5 {[%clk
0:02:50.8]} 10. Nf4 {[%clk 0:02:40.4]} 10... Nf6 {[%clk 0:02:50]} 11. c4 {[%clk
0:02:36.7]} 11... dxc4 {[%clk 0:02:49.1]} 12. Bxc4 {[%clk 0:02:37.6]} 12... Kf8
{[%clk 0:02:41.9]} 13. g3 {[%clk 0:02:31.9]} 13... Kg7 {[%clk 0:02:41.6]} 14. a3
{[%clk 0:02:22.3]} 14... a5 {[%clk 0:02:39.3]} 15. Ba2 {[%clk 0:02:20.5]} 15...
Re8 {[%clk 0:02:35.5]} 16. Nc4 {[%clk 0:02:20]} 16... Bc7 {[%clk 0:02:35.7]} 17.
Rd1 {[%clk 0:02:19.8]} 17... Qe7 {[%clk 0:02:33.5]} 18. O-O {[%clk 0:02:10.8]}
18... Rb8 {[%clk 0:02:11.1]} 19. Rfe1 {[%clk 0:01:58.2]} 19... Bd7 {[%clk
0:01:50.8]} 20. d5 {[%clk 0:01:57.5]} 20... cxd5 {[%clk 0:01:46.4]} 21. Nxd5
{[%clk 0:01:54.1]} 21... Nxd5 {[%clk 0:01:44.8]} 22. Qxd5 {[%clk 0:01:55]} 22...
Bc6 {[%clk 0:01:38.8]} 23. Qd4+ {[%clk 0:01:54.7]} 23... Qf6 {[%clk 0:01:38.4]}
24. Nd6 {[%clk 0:01:50.3]} 24... Re7 {[%clk 0:01:32.5]} 25. Rd2 {[%clk
0:01:35.4]} 25... Qxd4 {[%clk 0:01:24.4]} 26. Rxd4 {[%clk 0:01:34.9]} 26... Rd8
{[%clk 0:01:04]} 27. Red1 {[%clk 0:01:26.5]} 27... Rxd6 {[%clk 0:01:01.4]} 28.
Rxd6 {[%clk 0:01:25.9]} 28... Bxd6 {[%clk 0:01:01.5]} 29. Rxd6 {[%clk
0:01:26.8]} 29... Re5 {[%clk 0:00:58.3]} 30. b4 {[%clk 0:01:21.4]} 30... axb4
{[%clk 0:00:57.8]} 31. axb4 {[%clk 0:01:22.3]} 31... Re4 {[%clk 0:00:49.1]} 32.
Rd4 {[%clk 0:01:20.6]} 32... Rxd4 {[%clk 0:00:48.9]} 33. exd4 {[%clk 0:01:21.5]}
33... f4 {[%clk 0:00:44.7]} 34. gxf4 {[%clk 0:01:07.5]} 34... Kf6 {[%clk
0:00:44.5]} 35. Kh2 {[%clk 0:01:01.5]} 35... Be4 {[%clk 0:00:34.4]} 36. Kg3
{[%clk 0:01:00.6]} 36... Ke7 {[%clk 0:00:34.5]} 37. f3 {[%clk 0:00:59.5]} 37...
Bc2 {[%clk 0:00:29.5]} 38. Bd5 {[%clk 0:00:57.6]} 38... b6 {[%clk 0:00:29.3]}
39. Be4 {[%clk 0:00:56.6]} 39... Bb3 {[%clk 0:00:29.2]} 40. f5 {[%clk
0:00:57.1]} 40... Kf6 {[%clk 0:00:24.4]} 41. fxg6 {[%clk 0:00:57.3]} 41... fxg6
{[%clk 0:00:24.6]} 42. Kf4 {[%clk 0:00:55.4]} 42... Be6 {[%clk 0:00:22.2]} 43.
d5 {[%clk 0:00:55]} 43... Bd7 {[%clk 0:00:22.4]} 44. d6 {[%clk 0:00:55]} 44...
Be6 {[%clk 0:00:21.5]} 45. Bc6 {[%clk 0:00:54.9]} 1-0